Cogmind - Beta 13 @@@ ROGUE MODE // 2024.05.17 @ 12:10:54 Player: FauxMaasks Result: Self-destructed Performance ------------- Evolutions (2) 1000 Regions Visited (7) 1400 Robots Destroyed (16) 80 Value Destroyed (408) 408 Prototype IDs (3) 60 Alien Tech Used (0) 0 Bonus (0) 0 TOTAL SCORE: 2948 Bonus ------- None Cogmind --------- Core Integrity 486/550 Matter 214/300 Energy 7/100 System Corruption 0% Temperature Cool (0) Movement Hovering (51) Location -8/Materials Parts ------- > --- POWER (1) -------- (None) > --- PROPULSION (4) --- Airjet Aerolev Unit > --- UTILITY (4) ------ Medium Storage Unit Sensor Array Signal Interpreter Advanced Targeting Computer > --- WEAPON (2) ------- Small Laser Pulse Rifle > --- INVENTORY (10) --- Medium Laser Light Assault Rifle Rocket Launcher Peak State ------------ > --- POWER ------------ (None) > --- PROPULSION ------- Airjet Aerolev Unit Flight Unit Cesium-ion Thruster > --- UTILITY ---------- Medium Storage Unit Sensor Array Signal Interpreter Advanced Targeting Computer > --- WEAPON ----------- Small Laser Pulse Rifle > --- INVENTORY -------- Medium Laser Light Assault Rifle Rocket Launcher [Rating: 21] Favorites ----------- Power Ion Engine Engine Ion Engine Propulsion Flight Unit Hover Unit Airjet Flight Unit Flight Unit Utility Signal Interpreter Device Sensor Array Storage Medium Storage Unit Processor Signal Interpreter Weapon Small Laser Energy Gun Small Laser Ballistic Gun Light Assault Rifle Launcher Rocket Launcher Build | -11 -10 -10 -9 -9 -9 -8 -8 ------- Run | Yrd Mat Min Mat Min Exi Min Mat Slots Evolved 4 | . . . 2 . . . 2 Power . | . . . . . . . . Propulsion 2 | . . . 1 . . . 1 Utility 2 | . . . 1 . . . 1 Weapon . | . . . . . . . . Parts Attached 40 | 1 14 11 7 1 . . 6 Power 4 | . 2 2 . . . . . Engine 4 | . 2 2 . . . . . Core . | . . . . . . . . Reactor . | . . . . . . . . Propulsion 13 | . 4 2 3 1 . . 3 Treads . | . . . . . . . . Leg . | . . . . . . . . Wheel . | . . . . . . . . Hover 3 | . . . . . . . 3 Flight 10 | . 4 2 3 1 . . . Utility 7 | 1 3 1 . . . . 2 Device 2 | . 1 1 . . . . . Storage 2 | 1 . . . . . . 1 Processor 3 | . 2 . . . . . 1 Hackware . | . . . . . . . . Protection . | . . . . . . . . Artifact . | . . . . . . . . Weapon 16 | . 5 6 4 . . . 1 Energy Gun 9 | . 3 2 3 . . . 1 Energy Cannon . | . . . . . . . . Ballistic Gun 4 | . 2 2 . . . . . Ballistic Cannon . | . . . . . . . . Launcher 3 | . . 2 1 . . . . Special Weapon . | . . . . . . . . Impact Weapon . | . . . . . . . . Slashing Weapon . | . . . . . . . . Piercing Weapon . | . . . . . . . . Special Melee Weapon . | . . . . . . . . Unidentified Prototypes 1 | . . . . . . . 1 Parts Lost 6 | . 1 . 1 . . 1 3 Power 1 | . . . . . . 1 . Propulsion 4 | . . . 1 . . . 3 Utility 1 | . 1 . . . . . . Weapon . | . . . . . . . . Highest Loss Streak 2 | . 1 . 1 . . 1 2 To Critical Strikes . | . . . . . . . . Average Slot Usage (%) 83 | . 65 100 87 82 88 85 69 Engine 10 | . 9 14 11 11 11 8 . Flight 25 | . 18 28 32 27 33 33 19 Device 10 | . 7 14 11 11 11 11 9 Processor 11 | . 9 14 11 11 11 11 11 Energy Gun 13 | . 7 15 11 22 22 22 12 Ballistic Gun 8 | . 11 12 10 . . . . Naked Turns 8 | . 8 . . . . . . Heaviest Build 12 | . 8 10 9 9 9 9 12 Greatest Support 16 | 3 8 8 13 13 13 13 16 Greatest Overweight (x) 3 | . 1 1 . . . . 3 Average Overweight (x) . | . . . . . . . . Largest Inventory Capacity 10 | 8 5 5 5 5 5 5 10 Average Capacity 5 | 5 5 5 5 5 5 5 9 Most Carried 7 | 5 5 5 5 5 4 4 7 Average Carried 4 | 3 4 4 4 4 4 4 5 Final Capacity 10 | 5 5 5 5 5 5 5 10 Final Carried 5 | 5 5 5 5 4 4 4 3 Class Distribution -------------------- 38% | Scavenger-Mutant 29% | Mutant 27% | Sprinter 4% | Scavenger-Sprinter Dominant Class ---------------- Mutant | -10/Materials Scavenger-Mutant | -10/Mines Sprinter | -9/Materials Sprinter | -9/Mines Sprinter | -9/Exiles Sprinter | -8/Mines Mutant | -8/Materials Resources | -11 -10 -10 -9 -9 -9 -8 -8 ----------- Run | Yrd Mat Min Mat Min Exi Min Mat Matter Collected 629 | 201 228 78 122 . . . . Remotely . | . . . . . . . . Salvage Created 470 | . 331 9 92 . . . 38 Parts 26 | . 19 3 4 . . . . Haulers Intercepted . | . . . . . . . . Recyclers Shooed . | . . . . . . . . Parts Field Recycled . | . . . . . . . . Retrieved Matter . | . . . . . . . . Parts Self-Destructed . | . . . . . . . . Prevented . | . . . . . . . . Kills | -11 -10 -10 -9 -9 -9 -8 -8 ------- Run | Yrd Mat Min Mat Min Exi Min Mat Combat Hostiles Destroyed 15 | . 9 3 2 . . . 1 Guns 12 | . 9 . 2 . . . 1 AOE 3 | . . 3 . . . . . Classes Destroyed 3 | . 3 . . . . . . Watcher 1 | . 1 . . . . . . Swarmer 6 | . 3 3 . . . . . Grunt 9 | . 6 . 2 . . . 1 Best Kill Streak 4 | . 4 3 2 . . . 1 Combat Bots Only 3 | . 3 3 2 . . . 1 Max Kills in Single Turn 3 | . 1 3 1 . . . 1 Gunslinging . | . . . . . . . . Exploded 3 | . . 3 . . . . . Melee . | . . . . . . . . Uniques/NPCs Destroyed . | . . . . . . . . Combat | -11 -10 -10 -9 -9 -9 -8 -8 -------- Run | Yrd Mat Min Mat Min Exi Min Mat Hostile Shots Fired 107 | . 44 10 15 . . 7 31 Missed 39 | . 11 4 7 . . 5 12 Damage Taken 975 | . 353 148 135 . . 29 310 Core 291 | . 111 37 64 . . 15 64 Absorbed by Shields . | . . . . . . . . Core Remaining (%) 73 | 100 . 40 . . . 80 . Volleys Fired 56 | . 31 3 8 . . . 14 Largest 2 | . 2 1 2 . . . 2 Hottest 103 | . 80 33 60 . . . 103 Shots Fired 94 | . 61 3 15 . . . 15 Gun 90 | . 61 . 14 . . . 15 Cannon . | . . . . . . . . Launcher 4 | . . 3 1 . . . . Special . | . . . . . . . . Kinetic 43 | . 36 . 7 . . . . Thermal 47 | . 25 . 7 . . . 15 Explosive 4 | . . 3 1 . . . . Electromagnetic . | . . . . . . . . Robot Hit Streak 14 | . 10 . 6 . . . 14 Robot Miss Streak 4 | . 4 2 2 . . . 1 Penetration Max . | . . . . . . . . Secondary Targets . | . . . . . . . . Shots Hit Robots 67 | . 44 . 9 . . . 14 Core Hits 29 | . 19 3 4 . . . 3 Critical Kills . | . . . . . . . . Critical Parts Destroyed . | . . . . . . . . Critical Strikes . | . . . . . . . . Melee Attacks . | . . . . . . . . Impact . | . . . . . . . . Slashing . | . . . . . . . . Piercing . | . . . . . . . . Sneak Attacks . | . . . . . . . . Combat Hostiles . | . . . . . . . . Follow-up Attacks . | . . . . . . . . Damage Inflicted 905 | . 531 134 84 . . . 156 Guns 771 | . 531 . 84 . . . 156 Cannons . | . . . . . . . . Explosions 134 | . . 134 . . . . . Melee . | . . . . . . . . Ramming . | . . . . . . . . Kinetic 324 | . 303 . 21 . . . . Thermal 447 | . 228 . 63 . . . 156 Explosive 134 | . . 134 . . . . . Electromagnetic . | . . . . . . . . Impact . | . . . . . . . . Slashing . | . . . . . . . . Piercing . | . . . . . . . . Highest Corruption . | . . . . . . . . Average Corruption . | . . . . . . . . Corruption Purged . | . . . . . . . . Corruption Blocked . | . . . . . . . . Overload Shots . | . . . . . . . . Overflow Damage 6 | . . . 6 . . . . Projectiles . | . . . . . . . . Explosions 6 | . . . 6 . . . . Melee . | . . . . . . . . Knockbacks . | . . . . . . . . Impact . | . . . . . . . . Kinetic . | . . . . . . . . Secondary . | . . . . . . . . Self-Inflicted Damage 89 | . . 48 41 . . . . Shots 2 | . . 1 1 . . . . Rammed . | . . . . . . . . Targets Rammed . | . . . . . . . . Kicked . | . . . . . . . . Crushed . | . . . . . . . . Highest Temperature 138 | . 138 . 82 . . . 27 Average Temperature 62 | . 72 . 44 . . . 12 Received Heat Transfer 339 | . 162 9 42 . . 9 117 Siege Activations . | . . . . . . . . Robots Corrupted . | . . . . . . . . Combat Hostiles . | . . . . . . . . Parts Fried . | . . . . . . . . Impact Corruptions . | . . . . . . . . Robots Melted . | . . . . . . . . Combat Hostiles . | . . . . . . . . Parts Melted 3 | . 1 . . . . . 2 Heat Transferred 1037 | . 525 . 150 . . . 362 Parts Sabotaged . | . . . . . . . . Parts Stolen . | . . . . . . . . Parts Stripped . | . . . . . . . . Power Chain Reactions . | . . . . . . . . Alert | -11 -10 -10 -9 -9 -9 -8 -8 ------- Run | Yrd Mat Min Mat Min Exi Min Mat Peak Influence 367 | . 367 119 155 75 . 20 128 Initial 78 | . . 78 39 60 . . 7 Average 96 | . 154 87 89 74 . 12 40 Maximum Alert Level 1 | . 1 . . . . . . Low Security (%) 89 | 100 64 100 100 100 . 100 100 Level 1 10 | . 35 . . . . . . Level 2 . | . . . . . . . . Level 3 . | . . . . . . . . Level 4 . | . . . . . . . . Level 5 . | . . . . . . . . High Security . | . . . . . . . . Max Security . | . . . . . . . . Squads Dispatched 5 | . 2 . 2 . . . 1 Investigation 1 | . . . . . . . 1 Extermination . | . . . . . . . . Reinforcement 4 | . 2 . 2 . . . . Assault . | . . . . . . . . Garrison . | . . . . . . . . Intercept . | . . . . . . . . Searches Triggered . | . . . . . . . . Construction Impeded . | . . . . . . . . Haulers Reinforced . | . . . . . . . . Active Scanning Responses . | . . . . . . . . Cargo Convoy Interrupts . | . . . . . . . . Stealth | -11 -10 -10 -9 -9 -9 -8 -8 --------- Run | Yrd Mat Min Mat Min Exi Min Mat Distress Signals 3 | . 2 . . . . . 1 Communications Jammed . | . . . . . . . . Distress Signals . | . . . . . . . . Times Spotted 53 | . 19 9 6 . . 4 15 Peak Tracking Total 12 | . 4 5 3 . . 4 12 Tactical Retreats 5 | . 2 1 . . . . 2 Traps | -11 -10 -10 -9 -9 -9 -8 -8 ------- Run | Yrd Mat Min Mat Min Exi Min Mat Traps Triggered . | . . . . . . . . Indirectly . | . . . . . . . . Trap Hack Attempts . | . . . . . . . . Triggered . | . . . . . . . . Disarmed . | . . . . . . . . Reprogrammed . | . . . . . . . . Reused . | . . . . . . . . Traps Extracted . | . . . . . . . . Installed . | . . . . . . . . Triggered . | . . . . . . . . Machines | -11 -10 -10 -9 -9 -9 -8 -8 ---------- Run | Yrd Mat Min Mat Min Exi Min Mat Machines Disabled . | . . . . . . . . Max in Single Turn . | . . . . . . . . Machines Repaired . | . . . . . . . . Machines Dismantled . | . . . . . . . . Machines Sabotaged . | . . . . . . . . Overloaded Fab Kills . | . . . . . . . . Hacking | -11 -10 -10 -9 -9 -9 -8 -8 --------- Run | Yrd Mat Min Mat Min Exi Min Mat Machines Accessed 14 | . 3 1 2 . 4 1 3 Terminals 9 | . 3 . 2 . . 1 3 Fabricators . | . . . . . . . . Repair Stations . | . . . . . . . . Recycling Units . | . . . . . . . . Scanalyzers . | . . . . . . . . Garrison Access . | . . . . . . . . Total Hacks 73 | . 8 1 3 . 49 2 10 Successful 59 | . 1 1 1 . 49 . 7 Failed 14 | . 7 . 2 . . 2 3 Catastrophic 3 | . 2 . 1 . . . . Database Lockouts . | . . . . . . . . Manual 15 | . 8 . 1 . 2 . 4 Terminals 23 | . 8 . 3 . . 2 10 Fabricators . | . . . . . . . . Repair Stations . | . . . . . . . . Recycling Units . | . . . . . . . . Scanalyzers . | . . . . . . . . Garrison Access . | . . . . . . . . Terminal Hacks 55 | . . 1 1 . 49 . 4 Record 50 | . . . . . 49 . 1 Prototype ID Bank 1 | . . . . . . . 1 Open Door 1 | . . 1 . . . . . Branch Access Points 1 | . . . 1 . . . . Alert Level 1 | . . . . . . . 1 Unreport Threat 1 | . . . . . . . 1 Fabricator Hacks . | . . . . . . . . Repair Station Hacks . | . . . . . . . . Recycling Unit Hacks . | . . . . . . . . Scanalyzer . | . . . . . . . . Garrison Access Hacks . | . . . . . . . . Unauthorized Hacks 4 | . 1 . . . . . 3 Terminals 4 | . 1 . . . . . 3 Track 1 | . . . . . . . 1 Botnet 3 | . 1 . . . . . 2 Fabricators . | . . . . . . . . Repair Stations . | . . . . . . . . Recycling Units . | . . . . . . . . Scanalyzers . | . . . . . . . . Garrison Access . | . . . . . . . . Data Cores Recovered . | . . . . . . . . Used . | . . . . . . . . Hacking Detections 9 | . 3 . 2 . . 1 3 Full Trace Events 1 | . . . . . . . 1 Feedback Events . | . . . . . . . . Feedback Blocked . | . . . . . . . . Robot Schematics Acquired . | . . . . . . . . Robots Built . | . . . . . . . . Authchips . | . . . . . . . . Time . | . . . . . . . . Total Robot Build Rating . | . . . . . . . . Part Schematics Acquired . | . . . . . . . . Parts Built . | . . . . . . . . Authchips . | . . . . . . . . Time . | . . . . . . . . Total Part Build Rating . | . . . . . . . . Parts Repaired . | . . . . . . . . Time . | . . . . . . . . Parts Recycled . | . . . . . . . . Recycled Matter . | . . . . . . . . Retrieved Matter . | . . . . . . . . Retrieved Components . | . . . . . . . . Parts Scanalyzed . | . . . . . . . . Part Schematics Acquired . | . . . . . . . . Parts Damaged . | . . . . . . . . Bothacking | -11 -10 -10 -9 -9 -9 -8 -8 ------------ Run | Yrd Mat Min Mat Min Exi Min Mat Used RIF Installer . | . . . . . . . . Robots Hacked . | . . . . . . . . Non-combat . | . . . . . . . . Combat . | . . . . . . . . Robot Hacks Applied . | . . . . . . . . Relay Couplers Released . | . . . . . . . . Fabnet Peak Effective % . | . . . . . . . . Robots Rewired . | . . . . . . . . Allies Hacked . | . . . . . . . . Hacks Repelled . | . . . . . . . . Allies | -11 -10 -10 -9 -9 -9 -8 -8 -------- Run | Yrd Mat Min Mat Min Exi Min Mat Total Allies . | . . . . . . . . Largest Group . | . . . . . . . . Highest-Rated Group . | . . . . . . . . Highest-Rated Ally . | . . . . . . . . Total Orders . | . . . . . . . . Ally Attacks . | . . . . . . . . Total Damage . | . . . . . . . . Kills . | . . . . . . . . Allies Corrupted . | . . . . . . . . Allies Melted . | . . . . . . . . Intel | -11 -10 -10 -9 -9 -9 -8 -8 ------- Run | Yrd Mat Min Mat Min Exi Min Mat Robot Analysis Total . | . . . . . . . . Derelict Logs Recovered 3 | . . 3 . . . . . Drone Launches . | . . . . . . . . Drone Recoveries . | . . . . . . . . Exploration | -11 -10 -10 -9 -9 -9 -8 -8 ------------- Run | Yrd Mat Min Mat Min Exi Min Mat Turns Passed 1553 | 29 440 528 151 18 140 100 147 Spaces Moved 2656 | 46 498 718 313 57 467 324 233 Core 117 | 46 70 . . . . . 1 Treads . | . . . . . . . . Legs . | . . . . . . . . Wheels . | . . . . . . . . Hover 58 | . . . . . . . 58 Flight 2481 | . 428 718 313 57 467 324 174 Fastest Speed 29 | 50 37 37 29 30 30 30 30 Average Speed 34 | 50 39 37 29 30 30 30 36 Slowest Speed 200 | 50 100 117 32 32 30 30 200 Overloaded Moves . | . . . . . . . . Propulsion Burnouts . | . . . . . . . . Robots Hopped 27 | . 22 3 . 1 . . 1 Cave-ins Triggered . | . . . . . . . . Exploration Rate (%) 49 | 3 65 95 27 19 89 72 23 Regions Visited 7 Branch Regions 4 Pre-discovered Areas 3 | . . 2 . . 1 . . Known Exits Taken 6 | . 1 1 1 1 1 1 . Unknown Exits Taken 1 | 1 . . . . . . . Scrap Searched 1 | . . 1 . . . . . Spaces Dug 22 | . . 13 9 . . . . Terrain Destroyed 43 | . . 34 9 . . . . Melee . | . . . . . . . . Projectile . | . . . . . . . . AOE 43 | . . 34 9 . . . . Terrain Rammed . | . . . . . . . . Walls Destroyed . | . . . . . . . . Machines Disabled . | . . . . . . . . Actions | -11 -10 -10 -9 -9 -9 -8 -8 --------- Run | Yrd Mat Min Mat Min Exi Min Mat Total 3164 | 51 661 968 356 56 466 326 280 Wait 409 | . 125 233 27 . . 3 21 Move 2597 | 45 455 711 312 54 466 323 231 Hop 25 | . 20 3 . 1 . . 1 Pick Up 16 | 4 7 2 . . . . 3 Fast Attach 13 | 1 7 3 . . . . 2 Attach 10 | . 4 . 1 1 . . 4 Detach 4 | 1 1 . . . . . 2 Swap 17 | . 3 8 6 . . . . Drop 17 | . 8 5 2 . . . 2 Fire 56 | . 31 3 8 . . . 14 Melee . | . . . . . . . . Ram . | . . . . . . . . Kick . | . . . . . . . . Crush . | . . . . . . . . Escape Stasis . | . . . . . . . . Rewire . | . . . . . . . . Trap . | . . . . . . . . Miscellaneous . | . . . . . . . . Route ------- -11/Scrapyard -10/Materials (discovered 3 exits: *Mat / *Min x2) -10/Mines (discovered 2 exits: *Mat x2) -9/Materials (discovered 3 exits: *Mat / *Min x2) -9/Mines (discovered 2 exits: *Mat / *Exi) -9/Exiles -8/Mines -8/Materials (discovered 1 exit: Sto) History --------- Turn | Location | Event 10 | -11/Scrapyard | Discovered new exit (range 14) 30 | -11/Scrapyard | Entered Materials 243 | -10/Materials | Discovered new exit (range 8) 300 | -10/Materials | Build established: Mutant 328 | -10/Materials | Identified exit to Materials 357 | -10/Materials | Discovered new exit (range 14) 457 | -10/Materials | Discovered new exit (range 12) 470 | -10/Materials | Identified exit to Mines 470 | -10/Materials | Entered Mines 477 | -10/Mines | Learned location of Storage (-8) 512 | -10/Mines | Met a Derelict who couldn't figure out how to use a Trap Extractor 531 | -10/Mines | Discovered exit to Materials (range 14) 546 | -10/Mines | Received a Rocket Launcher from a helpful Derelict 566 | -10/Mines | Learned Materials garrison access intel 587 | -10/Mines | Discovered exit to Materials (range 15) 720 | -10/Mines | Build established: Scavenger-Mutant 896 | -10/Mines | Core integrity fell below 50% 998 | -10/Mines | Entered Materials 998 | -9/Materials | Evolved 2 slots: Propulsion x1, Utility x1 1007 | -9/Materials | Discovered new exit (range 15) 1111 | -9/Materials | Identified exit to Mines 1120 | -9/Materials | Discovered new exit (range 15) 1149 | -9/Materials | Entered Mines 1156 | -9/Mines | Discovered new exit (range 14) 1159 | -9/Mines | Identified exit to Materials 1166 | -9/Mines | Deemed a non-threat by the Exiles lab entrance 1166 | -9/Mines | Discovered new exit (range 5) 1167 | -9/Mines | Identified exit to Exiles 1167 | -9/Mines | Entered Exiles 1174 | -9/Exiles | Met 8R-AWN 1180 | -9/Exiles | Met EX-HEX 1192 | -9/Exiles | Met EX-DEC 1194 | -9/Exiles | Learned location of Zion (-7) 1213 | -9/Exiles | Visited The Gauntlet 1261 | -9/Exiles | Met EX-BIN 1304 | -9/Exiles | Discovered new exit (range 14) 1307 | -9/Exiles | Identified exit to Mines 1307 | -9/Exiles | Entered Mines 1344 | -8/Mines | Build established: Sprinter 1406 | -8/Mines | Discovered exit to Materials (range 5) 1407 | -8/Mines | Entered Materials 1407 | -8/Materials | Evolved 2 slots: Propulsion x1, Utility x1 1408 | -8/Materials | Identified exit to Storage 1409 | -8/Materials | Loaded intel: 1 garrison access location 1554 | -8/Materials | Self-destructed Last Messages --------------- Awaiting botnet instructions. >>Trojan(Track) Trojan loaded successfully. Testing... Tracking enabled and active. 01457_ Connecting with Terminal... >>Alert(Check) Current Alert Level: Low Security >>Prototypes Downloading prototype IDs... Imp. VTOL Module Cld. VTOL Module 01473_ VTOL Module destroyed. 01518_ Dropped Pulse Rifle. 01519_ Acquired Pulse Rifle. 01527_ Flight Unit destroyed. 01531_ Cesium-ion Thruster destroyed. 01545_ G-47 Trooper overheating. 01552_ Aluminum Leg melted. 01552_ G-47 Trooper destroyed. Map ----- +----------------------------------------------------+ | ## + #????# #???????????????????? | | # ###########????# #???????????????????? | | # # """ [ #????# #???????????????????? | | # # "T" #????# #???????????????????? | | # # * #????# #???????????????????? | | # # #????# #???????????????????? | | # # """ """ #????# #???????????????????? | | + + """ """ #????# #???????????????????? | | # # """ """ ?????# #???????????????????? | | ## # ?????# #???????????????????? | | ## ##########?????# #???????????????????? | | #???????# #???????????????????? | | #???????# #???????????????????? | | #???????# #???????????????????? | | ######### #???????# #???????????????????? | | ## #???????# #???????????????????? | | ! ## #???????# #???????????????????? | | ## ##?????## ##??????????????????? | | # ####### #??????????????????? | | # = #??????????????????? | | / T #??????????????????? | | # #??????????????????? | | # ####### #??????????????????? | | ## ######### ########????????????? | | ###+##### ##] =# # #????????????? | | ??# #???# ## # #@ !#????????????? | | ### ##### ## ][= + l%""" #????????????? | | ## ][ # g# """ #????????????? | | ## ][ # gY# """ !#????????????? | | ## # # #????????????? | | ## ###### ######### ########????????????? | | ?# #????# #?#!!= ## #???????????????????? | | ?# #????# #?#!/= ## #???????????????????? | | ?# #????# #?#!/= ## #???????????????????? | | ?# #????# #?# ## #???????????????????? | | ? #??### ### ## #???????????????????? | | ## #??# ###+### #####???????????????? | | ?# #??# #???????????????? | | ?# #??# #???????????????? | | ? ???# #???????????????? | | ?####???# ###+###########???????????????? | | ????????####### =#???????????????????? | | ??????????????# ! #???????????????????? | | ??????????????# ! =#???????????????????? | | ??????????????# #???????????????????? | | ??????????????###########???????????????????? | | | | | | | | | +----------------------------------------------------+ Best States ------------- Heat Dissipation 31 Energy Generation 10 Energy Capacity 250 Matter Stores 300 Matter Capacity 300 Sight Range 18 Robot Scan Range 14 Terrain Scan Density 10 Evasion (%) 64 Targeting Accuracy 8 Item Schematics ----------------- None Robot Schematics ------------------ None Fabricated ------------ Nothing Alien Tech Used ----------------- None Achievements -------------- None Challenges ------------ None Game ------ Seed BottomlessLinearCharger Manual? 0 Play Time 00:40:31 Cumulative 110.1 hours Start 2024.05.17 @ 10:06:04 End 2024.05.17 @ 12:10:54 Sessions 3 Manual Loads 0 Difficulty Rogue Special Mode None Game No. 22 Rogue 3 Adventurer 17 Explorer 2 Win Type - Total 3 Types 2/0/1/0/0/0/0/0/0 Lore% 47 Gallery% 57 Achievement% 56 Wizard Run 0 Options --------- Layout 2 ASCII 0 Keyboard 0 Movement Vi Keybinds 0 Fullscreen 0 Font 20/SmallcapsGlow Map View 64x51 Zoom Use 0% Tactical HUD 1 Map Filters NONE Filters NONE Steam 1 RUN: 8d04e8f7-8fc1-47ac-b105-c69272c7c173